lending/lending_fUSD_20260102
["ID","MTS","AMOUNT","RATE_DAILY","PERIOD"]
[400338183,1767389442859,-502.0,0.00030871,2]
[400338184,1767389442868,-168.0,0.00030936,2]
[400338185,1767389442878,-502.0,0.00031008,2]
[400338186,1767389442887,-1000.0,0.0003104,2]
[400338187,1767389442896,-511.15585513,0.00031145,2]
[400338188,1767389442905,-170.22389467,0.000314,30]
[400338189,1767389442915,-168.0,0.00031419,2]
[400338190,1767389442924,-168.0,0.00031484,2]
[400338191,1767389442933,-196.54559207,0.000315,2]
[400338192,1767389442942,-150.0,0.000315,2]
[400338193,1767389442952,-168.0,0.00031846,2]
[400338194,1767389442963,-9449.19883324,0.000319,2]
[400338195,1767389442974,-500.0,0.0003216,2]
[400338196,1767389442983,-18759.17532803,0.00032219,2]
[400338197,1767389442993,-890.34983316,0.000323,2]
[400338198,1767389443002,-645.37,0.00032495,2]
[400338199,1767389443011,-4808.94363595,0.000328,2]
[400338200,1767389443020,-261.75,0.00033,2]
[400338201,1767389443029,-1907.90335055,0.00033,2]
[400338202,1767389443038,-152.90178293,0.00033,2]
[400338203,1767389443048,-152.26,0.000335,14]
[400338204,1767389443058,-280.36,0.000335,14]
[400338205,1767389443067,-1206.25834594,0.000335,2]
[400338206,1767389443078,-867.3,0.000335,14]
[400338207,1767389443088,-325.73358732,0.00034,2]
[400338208,1767389443098,-645.37,0.0003412,2]
[400338209,1767389443107,-9449.19883324,0.00034233,2]
[400338210,1767389443117,-1000.0,0.00034489,2]
[400338211,1767389443127,-1724.29733764,0.0003449,2]
[400338212,1767389443137,-854.85371951,0.00034571,2]
[400338213,1767389443148,-18759.17532803,0.00034606,2]
[400338214,1767389443158,-151.87311279,0.00034952,2]
[400338215,1767389443168,-1909.75302216,0.00035,2]
[400338216,1767389443179,-160.70938277,0.00035,2]
[400338217,1767389443192,-175.44,0.00035167,14]
[400338218,1767389443205,-151.0,0.0003538,30]
[400338219,1767389443215,-261.75,0.000354,2]
[400338220,1767389443224,-645.37,0.00035744,2]
[400338221,1767389443235,-277.16438568,0.00036,2]
[400338222,1767389443244,-9449.19883324,0.00036567,2]
[400338223,1767389443254,-1603.40235966,0.000368,2]
[400338224,1767389443263,-1946.13520574,0.000368,2]
[400338225,1767389443273,-18759.17532803,0.00036992,2]
[400338226,1767389443282,-164.91727114,0.00037,2]
[400338227,1767389443294,-168.41,0.00037023,2]
[400338228,1767389443304,-645.37,0.00037369,2]
[400338229,1767389443313,-4312.46323591,0.0003759,2]
[400338230,1767389443322,-201.17935308,0.0003788,2]
[400338231,1767389443331,-1000.0,0.00037938,2]
[400338232,1767389443340,-150.0,0.00038356,120]
[400338233,1767389443349,-150.0,0.00038466,7]
[400338234,1767389443359,-150.0,0.00038466,7]
[400338235,1767389443368,-150.0,0.00038466,7]
[400338236,1767389443378,-150.44068196,0.00038466,7]
[400338237,1767389443388,-150.0,0.00038466,7]
[400338238,1767389443398,-150.0,0.00038466,7]
[400338239,1767389443407,-150.0,0.00038466,7]
[400338240,1767389443416,-150.0,0.00038466,7]
[400338241,1767389443425,-150.55633321,0.00038466,7]
[400338242,1767389443438,-150.0,0.00038466,7]
[400338243,1767389443447,-150.00000001,0.00038466,7]
[400338244,1767389443456,-150.0,0.00038466,7]
[400338245,1767389443465,-150.0,0.00038493,120]
[400338246,1767389443474,-261.75,0.000385,30]
[400338247,1767389443484,-168.71118852,0.0003863,120]
[400338248,1767389443493,-300.0,0.00038699,2]
[400338249,1767389443502,-300.0,0.00038699,2]
[400338250,1767389443511,-303.85501722,0.00038699,2]
[400338251,1767389443520,-300.0,0.00038699,2]
[400338252,1767389443529,-300.0,0.00038699,2]
[400338253,1767389443538,-595.88867019,0.00038699,2]
[400338254,1767389443547,-364.48459935,0.00038699,2]
[400338255,1767389443556,-300.0,0.00038699,2]
[400338256,1767389443565,-300.0,0.00038699,2]
[400338257,1767389443575,-300.0,0.00038699,2]
[400338258,1767389443584,-300.0,0.00038699,2]
[400338259,1767389443594,-300.0,0.00038699,2]
[400338260,1767389443603,-300.0,0.00038699,2]
[400338261,1767389443612,-303.47175408,0.00038699,2]
[400338262,1767389443625,-300.0,0.00038699,2]
[400338263,1767389443634,-578.04560059,0.00038699,2]
[400338264,1767389443644,-300.0,0.00038699,2]
[400338265,1767389443653,-300.0,0.00038699,2]
[400338266,1767389443663,-300.0,0.00038699,2]
[400338267,1767389443676,-300.0,0.00038699,2]
[400338268,1767389443687,-300.0,0.00038699,2]
[400338269,1767389443697,-300.0,0.00038699,2]
[400338270,1767389443707,-615.94778257,0.00038699,2]
[400338271,1767389443716,-304.64549813,0.00038699,2]
[400338272,1767389443725,-300.0,0.00038699,2]
[400338273,1767389443734,-300.0,0.00038699,2]
[400338274,1767389443743,-300.0,0.00038699,2]
[400338275,1767389443752,-300.0,0.00038699,2]
[400338276,1767389443761,-300.0,0.00038699,2]
[400338277,1767389443771,-303.85501722,0.00038699,2]
[400338278,1767389443780,-300.0,0.00038699,2]
[400338279,1767389443789,-300.0,0.00038699,2]
[400338280,1767389443799,-595.88867019,0.00038699,2]
[400338281,1767389443808,-364.48459935,0.00038699,2]
[400338282,1767389443817,-300.0,0.00038699,2]
[400338283,1767389443826,-300.0,0.00038699,2]
[400338284,1767389443835,-300.0,0.00038699,2]
[400338285,1767389443845,-300.0,0.00038699,2]
[400338286,1767389443853,-300.0,0.00038699,2]
[400338287,1767389443862,-300.0,0.00038699,2]
[400338288,1767389443871,-303.47175408,0.00038699,2]
[400338289,1767389443879,-300.0,0.00038699,2]
[400338290,1767389443888,-578.04560059,0.00038699,2]
[400338291,1767389443897,-300.0,0.00038699,2]
[400338292,1767389443906,-300.0,0.00038699,2]
[400338293,1767389443915,-300.0,0.00038699,2]
[400338294,1767389443923,-300.0,0.00038699,2]
[400338295,1767389443933,-300.0,0.00038699,2]
[400338296,1767389443942,-300.0,0.00038699,2]
[400338297,1767389443951,-615.94778257,0.00038699,2]
[400338298,1767389443960,-304.64549813,0.00038699,2]
[400338299,1767389443970,-300.0,0.00038699,2]
[400338300,1767389443979,-300.0,0.00038699,2]
[400338301,1767389443988,-300.0,0.00038699,2]
[400338302,1767389443998,-5524.0,0.000387,3]
[400338303,1767389444007,-854.85371951,0.00038738,2]
[400338304,1767389444015,-1794.62,0.00038856,2]
[400338305,1767389444024,-9449.19883324,0.000389,2]
[400338306,1767389444033,-645.37,0.00038994,2]
[400338307,1767389444042,-515.76565625,0.00039,28]
[400338308,1767389444051,-175.44,0.00039133,14]
[400338309,1767389444060,-200.0,0.00039151,2]
[400338310,1767389444069,-207.4,0.00039151,2]
[400338311,1767389444078,-215.0738,0.00039151,2]
[400338312,1767389444089,-223.0315306,0.00039151,2]
[400338313,1767389444099,-231.28369723,0.00039151,2]
[400338314,1767389444109,-239.84119403,0.00039151,2]
[400338315,1767389444118,-248.71531821,0.00039151,2]
[400338316,1767389444127,-257.91778498,0.00039151,2]
[400338317,1767389444137,-267.46074303,0.00039151,2]
[400338318,1767389444148,-277.35679052,0.00039151,2]
[400338319,1767389444158,-18759.17532803,0.00039379,2]
[400338320,1767389444168,-500.0,0.00039479,30]
[400338321,1767389444177,-500.0,0.00039479,30]
[400338322,1767389444186,-500.0,0.00039479,30]
[400338323,1767389444196,-500.0,0.00039479,30]
[400338324,1767389444205,-500.0,0.00039479,30]
[400338325,1767389444214,-500.0,0.00039479,30]
[400338326,1767389444223,-500.0,0.00039479,30]
[400338327,1767389444232,-500.0,0.00039479,30]
[400338328,1767389444242,-500.0,0.00039479,30]
[400338329,1767389444251,-500.0,0.00039479,30]
[400338330,1767389444260,-614.14098534,0.000395,2]
[400338331,1767389444269,-5530.0,0.000396,5]
[400338332,1767389444278,-1430.69,0.0003964,120]
[400338333,1767389444287,-640.0,0.0003987,120]
[400338334,1767389444298,-150.0,0.0003989,7]
[400338335,1767389444307,-151.87311279,0.00039945,2]
[400338336,1767389444316,-5000.0,0.0004,3]
[400338337,1767389444325,-387.94260457,0.0004,2]
[400338338,1767389444335,-1550.3594274,0.0004,2]
[400338339,1767389444344,-217.42374776,0.0004,2]
[400338340,1767389444353,-526.0,0.0004,2]
[400338341,1767389444362,-312.85411138,0.0004,2]
[400338342,1767389444371,-15451.52177338,0.0004,30]
[400338343,1767389444381,-508.0,0.00040007,10]
[400338344,1767389444390,-300.0,0.00040239,2]
[400338345,1767389444399,-451.49321932,0.00040267,30]
[400338346,1767389444408,-150.0,0.000403,30]
[400338347,1767389444417,-261.75,0.000403,30]
[400338348,1767389444427,-4814.0,0.00040335,2]
[400338349,1767389444436,-1403.0,0.00040335,2]
[400338350,1767389444446,-3600.121,0.00040335,2]
[400338351,1767389444455,-107226.23987977,0.000405,2]
[400338352,1767389444464,-287.61899177,0.0004052,2]
[400338353,1767389444474,-2000.0,0.00041,2]
[400338354,1767389444483,-508.0,0.00041087,10]
[400338355,1767389444492,-293.76970744,0.00041096,2]
[400338356,1767389444501,-179.65785517,0.00041096,103]
[400338357,1767389444511,-150.0,0.00041315,30]
[400338358,1767389444520,-500.0,0.00041362,60]
[400338359,1767389444529,-600.0,0.00041362,60]
[400338360,1767389444538,-298.29040107,0.00041362,60]
[400338361,1767389444547,-1000.0,0.00041387,2]
[400338362,1767389444556,-10019.35462052,0.0004142,120]
[400338363,1767389444566,-280.36,0.000416,14]
[400338364,1767389444575,-1000.0,0.00041623,30]
[400338365,1767389444585,-1000.0,0.00041623,30]
[400338366,1767389444596,-870.827,0.00041623,30]
[400338367,1767389444605,-1144.93687453,0.0004167,7]
[400338368,1767389444615,-298.26089446,0.00041889,2]
[400338369,1767389444631,-600.0,0.0004191,60]
[400338370,1767389444642,-151.0,0.00042,120]
[400338371,1767389444651,-1356.80143423,0.0004201,2]
[400338372,1767389444660,-832.0,0.00042015,16]
[400338373,1767389444670,-961.72,0.00042027,30]
[400338374,1767389444679,-660.52,0.00042027,30]
[400338375,1767389444689,-660.52,0.00042027,30]
[400338376,1767389444700,-482.01,0.00042027,30]
[400338377,1767389444709,-660.52,0.00042027,30]
[400338378,1767389444719,-482.01,0.00042027,30]
[400338379,1767389444728,-660.52,0.00042027,30]
[400338380,1767389444737,-660.52,0.00042027,30]
[400338381,1767389444746,-482.01,0.00042027,30]
[400338382,1767389444755,-482.01,0.00042027,30]
[400338383,1767389444765,-660.52,0.00042027,30]
[400338384,1767389444774,-660.52,0.00042027,30]
[400338385,1767389444783,-482.01,0.00042027,30]
[400338386,1767389444793,-582.0,0.000421,3]
[400338387,1767389444802,-151.59,0.00042164,30]
[400338388,1767389444812,-356.98,0.00042164,30]
[400338389,1767389444821,-1306.7,0.00042164,30]
[400338390,1767389444830,-150.0,0.00042164,30]
[400338391,1767389444840,-150.0,0.00042164,30]
[400338392,1767389444849,-150.0,0.00042164,30]
[400338393,1767389444858,-508.0,0.00042168,10]
[400338394,1767389444867,-1000.0,0.000423,90]
[400338395,1767389444875,-600.0,0.00042458,60]
[400338396,1767389444884,-500.0,0.00042458,60]
[400338397,1767389444893,-1057.15174,0.0004252,120]
[400338398,1767389444902,-1057.15174,0.0004252,120]
[400338399,1767389444911,-1057.15175,0.0004252,120]
[400338400,1767389444921,-1057.15174,0.0004252,120]
[400338401,1767389444929,-1057.15174,0.0004252,120]
[400338402,1767389444939,-832.0,0.00042627,16]
[400338403,1767389444947,-832.0,0.00042641,16]
[400338404,1767389444956,-999.0,0.00042657,120]
[400338405,1767389444965,-828.0,0.00042662,16]
[400338406,1767389444975,-500.0,0.0004271,31]
[400338407,1767389444984,-150.0,0.0004271,31]
[400338408,1767389444993,-1000.0,0.00042713,14]
[400338409,1767389445002,-150.0,0.0004274,30]
[400338410,1767389445012,-162.80268362,0.0004274,30]
[400338411,1767389445022,-150.0,0.0004274,30]
[400338412,1767389445032,-169.7017878,0.0004274,30]
[400338413,1767389445042,-150.0,0.0004274,30]
[400338414,1767389445051,-150.0,0.0004274,30]
[400338415,1767389445060,-1000.0,0.00042747,14]
[400338416,1767389445069,-1000.0,0.00042766,14]
[400338417,1767389445078,-1000.0,0.00042767,14]
[400338418,1767389445087,-2000.0,0.0004277,3]
[400338419,1767389445096,-2000.0,0.0004277,3]
[400338420,1767389445107,-150.0,0.0004277,120]
[400338421,1767389445117,-242.79677594,0.00042795,14]
[400338422,1767389445126,-1632.3679,0.000428,2]
[400338423,1767389445136,-867.3,0.000428,14]
[400338424,1767389445146,-1406.39877183,0.0004282,2]
[400338425,1767389445155,-151.0,0.0004282,120]
[400338426,1767389445165,-1265.0,0.00042823,2]
[400338427,1767389445174,-433.0,0.00042823,2]
[400338428,1767389445184,-1199.0,0.00042823,2]
[400338429,1767389445194,-913.0,0.00042823,2]
[400338430,1767389445203,-1000.0,0.00042843,14]
[400338431,1767389445213,-4485.0,0.00042847,7]
[400338432,1767389445222,-500.0,0.00042847,31]
[400338433,1767389445232,-150.0,0.00042847,31]
[400338434,1767389445241,-150.0,0.00042859,30]
[400338435,1767389445250,-199.6,0.000429,27]
[400338436,1767389445260,-152.26,0.000429,14]
[400338437,1767389445269,-253.0,0.000429,41]
[400338438,1767389445278,-854.85371951,0.00042906,9]
[400338439,1767389445287,-800.0,0.00042931,16]
[400338440,1767389445296,-800.0,0.00042931,16]
[400338441,1767389445304,-800.0,0.00042931,16]
[400338442,1767389445314,-800.0,0.00042931,16]
[400338443,1767389445324,-800.0,0.00042931,16]
[400338444,1767389445333,-800.0,0.00042931,16]
[400338445,1767389445344,-800.0,0.00042931,16]
[400338446,1767389445353,-800.0,0.00042931,16]
[400338447,1767389445363,-1000.0,0.00042951,14]
[400338448,1767389445372,-3155.0,0.00042952,120]
[400338449,1767389445382,-1057.15174,0.00042953,120]
[400338450,1767389445391,-1057.15175,0.00042953,120]
[400338451,1767389445401,-1057.15174,0.00042953,120]
[400338452,1767389445410,-1057.15174,0.00042953,120]
[400338453,1767389445421,-1057.15174,0.00042953,120]
[400338454,1767389445430,-18948.9064411,0.00042978,2]
[400338455,1767389445439,-484.0869343,0.00042978,2]
[400338456,1767389445449,-11033.7761278,0.00042978,2]
[400338457,1767389445458,-638.11163793,0.00042984,31]
[400338458,1767389445468,-150.0,0.00042984,31]
[400338459,1767389445477,-10008.38,0.00042985,30]
[400338460,1767389445486,-200.0,0.00042985,7]
[400338461,1767389445496,-150.0,0.00042985,120]
[400338462,1767389445505,-657.29,0.00042986,30]
[400338463,1767389445514,-660.52,0.00042986,30]
[400338464,1767389445524,-150.0,0.00042986,30]
[400338465,1767389445533,-150.0,0.00042986,30]
[400338466,1767389445542,-660.52,0.00042986,30]
[400338467,1767389445551,-660.52,0.00042986,30]
[400338468,1767389445560,-660.52,0.00042986,30]
[400338469,1767389445569,-660.52,0.00042986,30]
[400338470,1767389445578,-660.52,0.00042986,30]
[400338471,1767389445587,-482.01,0.00042986,30]
[400338472,1767389445596,-660.52,0.00042986,30]
[400338473,1767389445605,-660.52,0.00042986,30]
[400338474,1767389445614,-660.52,0.00042986,30]
[400338475,1767389445623,-481.83,0.00042986,30]
[400338476,1767389445636,-235.84568341,0.00042997,7]
[400338477,1767389445645,-150.0,0.00043,120]
[400338478,1767389445654,-150.0,0.00043,120]
[400338479,1767389445663,-500.0,0.00043,120]
[400338480,1767389445673,-180.7,0.00043,30]
[400338481,1767389445682,-151.85,0.00043,2]
[400338482,1767389445691,-979.0,0.00043,30]
[400338483,1767389445702,-306.0,0.00043,30]
[400338484,1767389445711,-643.47683394,0.00043,30]
[400338485,1767389445720,-643.47683394,0.00043,30]
[400338486,1767389445730,-201.0,0.00043,30]
[400338487,1767389445739,-23000.0,0.00043,31]
[400338488,1767389445748,-151.0,0.00043004,120]
[400338489,1767389445758,-50000.0,0.00043005,43]
[400338490,1767389445767,-50000.0,0.00043005,44]
[400338491,1767389445776,-50000.0,0.00043005,45]
[400338492,1767389445786,-600.0,0.00043006,60]
[400338493,1767389445795,-151.0,0.00043006,10]
[400338494,1767389445804,-151.0,0.00043006,10]
[400338495,1767389445813,-151.0,0.00043006,10]
[400338496,1767389445823,-151.0,0.00043006,10]
[400338497,1767389445832,-151.0,0.00043006,10]
[400338498,1767389445841,-151.0,0.00043006,10]
[400338499,1767389445850,-151.0,0.00043006,10]
[400338500,1767389445860,-151.0,0.00043006,10]
[400338501,1767389445869,-151.0,0.00043006,10]
[400338502,1767389445878,-151.0,0.00043006,10]
[400338503,1767389445887,-299.513624,0.00043006,10]
[400338504,1767389445896,-151.0,0.00043006,120]
[400338505,1767389445906,-320.11030943,0.00043006,120]
[400338506,1767389445915,-1200.0,0.00043006,30]
[400338507,1767389445924,-200.0,0.00043006,7]
[400338508,1767389445934,-45308.07477788,0.00043006,30]
[400338509,1767389445943,-988241.9458636,0.00043006,7]
[400338510,1767389446028,500.0,0.00030599,120]
[400338511,1767389446066,-500.0,0.00029911,2]
[400338512,1767389446076,-219.0,0.00030048,2]
[400338513,1767389446085,-613.0,0.00040335,2]
[400338514,1767389446094,-2258.17241141,0.00043006,7]
[400338518,1767389446287,-465.08686962,0.00043006,7]
[400338519,1767389446298,-5563.77620906,0.00043006,7]
[400338520,1767389446335,-482.01,0.00042027,30]
[400338521,1767389446344,-108.72083757,0.00042027,30]
[400338522,1767389446355,-551.79916243,0.00042027,30]
[400338523,1767389446364,-842.20891755,0.00043006,7]
[400338524,1767389446418,-1074.08152458,0.00043006,7]
[400338525,1767389446429,-10264.48088164,0.00043006,7]
[400338526,1767389446440,-6802.16,0.00043006,7]
[400338527,1767389446451,-2074.74606667,0.00043007,7]
[400338528,1767389446462,-52163.19198491,0.00043007,7]
[400338529,1767389446472,-16382.54989279,0.00043007,7]
[400338530,1767389446492,-503.26943875,0.00043007,7]
[400338531,1767389446503,-411.999998,0.00043007,7]
[400338532,1767389446514,-18011.3087602,0.00043007,7]
[400338533,1767389446524,-1004.86603967,0.00043007,7]
[400338534,1767389461801,500.0,0.00043007,120]
[400338535,1767389475358,500.0,0.00030599,120]
[400338536,1767389483068,500.0,0.00030599,120]
[400338537,1767389506257,500.0,0.00030599,120]
[400338538,1767389623503,500.0,0.00030599,120]
[400338539,1767389682113,500.0,0.00030599,120]
[400338540,1767389682375,500.0,0.00030599,120]
[400338541,1767389714535,500.0,0.00030599,120]
[400338542,1767389734400,500.0,0.00030599,120]
[400338543,1767389762385,500.0,0.00043004,120]
[400338544,1767389813832,500.0,0.00030599,120]
[400338545,1767389835056,500.0,0.00030599,120]
[400338546,1767389882580,500.0,0.00030599,120]
[400338547,1767389976466,500.0,0.00030599,120]
[400338548,1767389999490,286.33,0.00013699,2]
[400338549,1767390060587,500.0,0.00042986,120]
[400338550,1767390361049,500.0,0.00042986,120]
[400338551,1767390369744,200.01190026,0.00042986,120]
[400338552,1767390440458,-327.0,0.00020187,2]
[400338553,1767390440493,-250.0,0.00020187,2]
[400338554,1767390440526,-286.33,0.00020187,2]
[400338555,1767390440560,-250.0,0.00022206,2]
[400338556,1767390440593,-250.0,0.00022497,2]
[400338557,1767390440625,-151.0,0.00024412,2]
[400338558,1767390440658,-151.0,0.00024412,2]
[400338559,1767390440690,-151.0,0.00024442,2]
[400338560,1767390440725,-500.0,0.00026387,2]
[400338561,1767390440758,-286.33,0.00026676,2]
[400338562,1767390440790,-252.28058532,0.00026984,2]
[400338563,1767390440823,-253.93157103,0.00027397,4]
[400338564,1767390440856,-4354.09107814,0.00027739,2]
[400338565,1767390440895,-202.37378735,0.00029136,2]
[400338566,1767390440927,-151.87311279,0.00029959,2]
[400338567,1767390440958,-500.0,0.00030599,2]
[400338568,1767390440979,-327.0,0.00030599,2]
[400338569,1767390440991,-173.0,0.00030599,2]
[400338570,1767390441000,-77.0,0.00030599,2]
[400338571,1767390441011,-286.33,0.00030599,2]
[400338572,1767390441023,-136.67,0.00030599,2]
[400338573,1767390441033,-113.33,0.00030599,2]
[400338574,1767390441044,-250.0,0.00030599,2]
[400338575,1767390441059,-136.67,0.00030599,2]
[400338576,1767390441068,-14.33,0.00030599,2]
[400338577,1767390441079,-151.0,0.00030599,2]
[400338578,1767390441090,-151.0,0.00030599,2]
[400338579,1767390441102,-183.67,0.00030599,2]
[400338580,1767390441111,-316.33,0.00030599,2]
[400338581,1767390441122,-286.33,0.00030599,2]
[400338582,1767390441133,-252.28058532,0.00030599,2]
[400338583,1767390441156,-253.93157103,0.00030599,2]
[400338584,1767390441169,-248.44784365,0.00030599,2]
[400338585,1767390441179,-1357.32,0.00030599,2]
[400338586,1767390441188,-1357.32,0.00030599,2]
[400338587,1767390441198,-1357.32,0.00030599,2]
[400338588,1767390441207,-33.68323449,0.00030599,2]
[400338589,1767390441219,-202.37378735,0.00030599,2]
[400338590,1767390441230,-151.87311279,0.00030599,2]
[400338591,1767390441241,-500.0,0.00030599,2]
[400338592,1767390441252,-365.57973074,0.00030599,2]
[400338605,1767390515219,250.0,0.00017,2]
[400338607,1767390602839,534.25,0.00017365,2]
[400338609,1767390610385,-534.25,0.00018279,2]
[400338610,1767390610408,-60.9250977,0.00019,2]
[400338620,1767390631698,-239.0749023,0.00019,2]
[400338621,1767390631708,-314.0,0.00019,2]
[400338622,1767390631718,-534.25,0.00019193,2]
[400338623,1767390631727,-155.49660181,0.00020107,2]
[400338624,1767390631847,-324.98920754,0.00020107,2]
[400338625,1767390631858,-53.76419065,0.00020107,2]
[400338626,1767390631867,-350.0,0.00021,2]
[400338627,1767390631877,-403.03693654,0.00021021,2]
[400338628,1767390631888,-131.21306346,0.00021021,2]
[400338629,1767390631897,-534.25,0.00021935,2]
[400338630,1767390631906,-534.25,0.00022849,2]
[400338631,1767390631917,-400.0,0.00023,2]
[400338632,1767390631926,-534.25,0.00023763,2]
[400338633,1767390631935,-151.0,0.00024453,2]
[400338634,1767390631944,-151.0,0.00024453,2]
[400338635,1767390631954,-534.25,0.00024677,2]
[400338636,1767390631966,-65.78693653,0.00024891,2]
[400338637,1767390631978,-184.21306347,0.00024891,2]
[400338638,1767390631987,-534.25,0.00025591,2]
[400338639,1767390631996,-534.25,0.00026505,2]
[400338640,1767390632006,-250.0,0.000273,2]
[400338641,1767390632016,-534.25,0.00027419,2]
[400338642,1767390632026,-250.0,0.00027442,2]
[400338643,1767390632038,-534.25,0.00028333,2]
[400338644,1767390632048,-534.25,0.00029247,2]
[400338645,1767390632057,-534.25,0.00030161,2]
[400338647,1767390632067,-400.0,0.00030598,2]
[400338649,1767390632078,-103.81013463,0.00030599,2]
[400338650,1767390632087,-1357.32,0.00030599,2]
[400338651,1767390632096,-1357.32,0.00030599,2]
[400338653,1767390632106,-1357.32,0.00030599,2]
[400338655,1767390632115,-1357.32,0.00030599,2]
[400338657,1767390632125,-1357.32,0.00030599,2]
[400338659,1767390632135,-1357.32,0.00030599,2]
[400338661,1767390632144,-1357.32,0.00030599,2]
[400338663,1767390632153,-1357.32,0.00030599,2]
[400338664,1767390632163,-1108.45347837,0.00030599,2]
[400338666,1767390632175,-248.86652163,0.00030599,2]
[400338668,1767390632184,-1357.32,0.00030599,2]
[400338669,1767390632193,-1357.32,0.00030599,2]
[400338671,1767390632203,-1357.32,0.00030599,2]
[400338672,1767390632212,-1357.32,0.00030599,2]
[400338674,1767390632221,-1357.32,0.00030599,2]
[400338676,1767390632230,-1357.32,0.00030599,2]
[400338677,1767390632240,-1357.32,0.00030599,2]
[400338679,1767390632248,-1324.11228549,0.00030599,2]
[400338680,1767390632260,-33.20771451,0.00030599,2]
[400338682,1767390632270,-1357.32,0.00030599,2]
[400338684,1767390632279,-1357.52434418,0.00030599,2]
[400338685,1767390632289,-500.0,0.00030599,2]
[400338687,1767390632298,-500.0,0.00030599,30]
[400338688,1767390632308,-500.0,0.00030599,45]
[400338690,1767390632317,-500.0,0.00030599,2]
[400338692,1767390632328,-500.0,0.00030599,2]
[400338694,1767390632342,-500.0,0.00030599,2]
[400338695,1767390632355,-500.0,0.00030599,2]
[400338697,1767390632364,-500.0,0.00030599,2]
[400338698,1767390632375,-500.0,0.00030599,2]
[400338700,1767390632388,-222.83076836,0.00030599,2]
[400338702,1767390632398,-353.01,0.00030599,2]
[400338704,1767390632407,-353.01,0.00030599,2]
[400338705,1767390632417,-353.01,0.00030599,2]
[400338707,1767390632427,-353.01,0.00030599,2]
[400338708,1767390632436,-353.01,0.00030599,2]
[400338710,1767390632445,-353.01,0.00030599,2]
[400338712,1767390632454,-353.01,0.00030599,2]
[400338713,1767390632463,-353.01,0.00030599,2]
[400338715,1767390632472,-353.01,0.00030599,2]
[400338717,1767390632481,-353.01,0.00030599,2]
[400338719,1767390632490,-353.01,0.00030599,2]
[400338720,1767390632500,-353.01,0.00030599,2]
[400338722,1767390632509,-353.01,0.00030599,2]
[400338724,1767390632518,-353.01,0.00030599,2]
[400338725,1767390632527,-353.01,0.00030599,2]
[400338727,1767390632536,-353.01,0.00030599,2]
[400338729,1767390632545,-353.01,0.00030599,2]
[400338730,1767390632554,-353.01,0.00030599,2]
[400338732,1767390632563,-353.01,0.00030599,2]
[400338734,1767390632572,-353.01,0.00030599,2]
[400338735,1767390632581,-353.01,0.00030599,2]
[400338737,1767390632590,-353.01,0.00030599,2]
[400338739,1767390632600,-353.01,0.00030599,2]
[400338741,1767390632609,-353.18711206,0.00030599,2]
[400338742,1767390632618,-534.25,0.00031075,2]
[400338744,1767390632627,-534.25,0.00031989,2]
[400338746,1767390632636,-534.25,0.00032903,2]
[400338747,1767390632646,-560.0,0.00032958,2]
[400338749,1767390632656,-286.33,0.00033165,2]
[400338751,1767390632665,-166.66,0.00033493,30]